fUSD/lending_fUSD_20240927
["ID","MTS","AMOUNT","RATE_DAILY","PERIOD"]
[339308477,1727444306830,-1665593.60792641,0.00030291,120]
[339308478,1727444306856,-51528.66580258,0.00030291,120]
[339308479,1727444306878,-3236.4985163,0.00030291,31]
[339308480,1727444345023,500.0,0.00011,4]
[339308481,1727444347132,1000.0,0.000111,4]
[339308482,1727444349219,800.0,0.00030301,120]
[339308483,1727444366703,1000.0,0.00032,30]
[339308484,1727444387262,2500.0,0.00032876,30]
[339308485,1727444404779,5027.23862765,0.00032603,60]
[339308486,1727444407861,800.0,0.00032877,120]
[339308487,1727444465710,311.84,8.906e-05,2]
[339308488,1727444467244,800.0,0.00032877,120]
[339308489,1727444506271,1000.0,0.00010816,2]
[339308490,1727444510529,159.26,0.00010959,2]
[339308491,1727444523563,250.0,0.00032876,30]
[339308492,1727444526921,800.0,0.00032877,120]
[339308493,1727444533053,500.0,0.00032876,30]
[339308494,1727444540641,1006.0,0.00032876,30]
[339308495,1727444553725,999.0,0.00032876,120]
[339308496,1727444571380,177.95,0.0001082,2]
[339308497,1727444585277,800.0,0.00032877,120]
[339308498,1727444590692,250.0,0.0001082,2]
[339308499,1727444590840,884.95971865,0.00032406,30]
[339308500,1727444598788,500.0,0.00028012,120]
[339308501,1727444647254,800.0,0.00032877,120]
[339308503,1727444708978,800.0,0.00032877,120]
[339308504,1727444735959,2648.26,0.00032876,120]
[339308505,1727444736246,2648.26,0.00032876,120]
[339308506,1727444736774,2648.26,0.00032876,120]
[339308507,1727444736844,2648.26,0.00032876,120]
[339308508,1727444737208,2648.26,0.00032876,120]
[339308509,1727444737498,2648.26,0.00032876,120]
[339308510,1727444742098,2648.26,0.00032876,120]
[339308511,1727444742403,2648.26,0.00032876,120]
[339308512,1727444742704,2648.26,0.00032876,120]
[339308513,1727444743327,2648.26,0.00032876,120]
[339308514,1727444743653,2648.26,0.00032876,120]
[339308515,1727444743955,2648.26,0.00032876,120]
[339308516,1727444744297,2648.26,0.00032876,120]
[339308517,1727444744570,2648.26,0.00032876,120]
[339308518,1727444744909,2648.26,0.00032876,120]
[339308519,1727444745225,2648.26,0.00032876,120]
[339308520,1727444745523,2648.26,0.00032876,120]
[339308521,1727444745821,2648.26,0.00032876,120]
[339308522,1727444746107,2648.26,0.00032876,120]
[339308523,1727444746412,2648.26,0.00032876,120]
[339308524,1727444746694,2648.26,0.00032876,120]
[339308525,1727444747156,2648.26,0.00032876,120]
[339308526,1727444747291,2648.26,0.00032876,120]
[339308527,1727444747945,2648.43656422,0.00032876,120]
[339308528,1727444757616,152.77,9.589e-05,2]
[339308529,1727444761668,2025.49,0.00032,32]
[339308530,1727444768887,800.0,0.00032877,120]
[339308531,1727444797236,2000.0,0.000328,32]
[339308532,1727444814851,999.0,0.00032876,120]
[339308533,1727444823937,800.0,0.00032877,120]
[339308534,1727444835826,400.0,0.00011,4]
[339308535,1727444838004,800.0,0.000111,4]
[339308536,1727444889151,800.0,0.00032877,120]
[339308537,1727444943286,800.0,0.00032877,120]
[339308538,1727444953932,724.06,0.00010959,2]
[339308545,1727444985489,233.57,0.00010768,2]
[339308546,1727444988822,250.0,0.00010773,2]
[339308550,1727445009293,800.0,0.00032877,120]
[339308574,1727445031674,-494.77243153,0.0001117,2]
[339308575,1727445031684,-1300.0,0.000112,4]
[339308576,1727445031694,-1700.0,0.000113,4]
[339308577,1727445031703,-2100.0,0.000114,4]
[339308578,1727445031713,-400.0,0.000115,4]
[339308579,1727445031723,-150.0,0.00011562,2]
[339308580,1727445031732,-1432.4875,0.00011588,2]
[339308581,1727445031742,-300.0,0.00011599,2]
[339308582,1727445031751,-150.0,0.000116,2]
[339308583,1727445031761,-427.86,0.000116,2]
[339308584,1727445031770,-716.11,0.000116,2]
[339308585,1727445031780,-257.28,0.000116,2]
[339308586,1727445031789,-348.86,0.000116,2]
[339308587,1727445031799,-400.0,0.000116,4]
[339308588,1727445031808,-428.27,0.000116,2]
[339308589,1727445031818,-715.48,0.000116,2]
[339308590,1727445031827,-150.99,0.000116,2]
[339308591,1727445031837,-421.86233158,0.0001163,2]
[339308592,1727445031846,-233.652,0.00011644,2]
[339308593,1727445031855,-499.99,0.00011644,2]
[339308594,1727445031866,-89.56033657,0.00011644,2]
[339308595,1727445031878,-61.42966343,0.00011644,2]
[339308596,1727445031888,-150.0,0.00011687,2]
[339308597,1727445031897,-44.98298126,0.00011688,2]
[339308598,1727445031909,-415.98592689,0.00011688,2]
[339308599,1727445031922,-51562.85109185,0.00011688,2]
[339308600,1727445031932,-1171.54,0.00011688,2]
[339308601,1727445031942,-358.25,0.000117,2]
[339308602,1727445031952,-428.44,0.000117,2]
[339308603,1727445031961,-152.99,0.000117,2]
[339308604,1727445031971,-213.38,0.000117,2]
[339308605,1727445031981,-753.88,0.000117,2]
[339308606,1727445031990,-150.0,0.000117,2]
[339308607,1727445031999,-358.25,0.000117,2]
[339308608,1727445032009,-150.0,0.000117,2]
[339308609,1727445032020,-428.44,0.000117,2]
[339308610,1727445032030,-422.78,0.000117,2]
[339308611,1727445032040,-358.25,0.000117,2]
[339308612,1727445032051,-753.88,0.000117,2]
[339308613,1727445032061,-428.44,0.000117,2]
[339308614,1727445032073,-300.0,0.000117,2]
[339308615,1727445032086,-753.88,0.000117,2]
[339308616,1727445032096,-358.25,0.000117,2]
[339308617,1727445032106,-150.0,0.000117,2]
[339308618,1727445032116,-428.44,0.000117,2]
[339308619,1727445032125,-751.64,0.000117,2]
[339308620,1727445032135,-716.2,0.000117,2]
[339308621,1727445032144,-400.0,0.000117,4]
[339308622,1727445032154,-264.94095339,0.00011781,2]
[339308623,1727445032163,-1320.14,0.00011781,2]
[339308624,1727445032173,-1502.2,0.00011781,2]
[339308625,1727445032183,-299.99,0.00011781,2]
[339308626,1727445032192,-4045.7538,0.00011782,2]
[339308627,1727445032201,-389.91610429,0.00011782,2]
[339308628,1727445032211,-264.94095334,0.00011783,2]
[339308629,1727445032220,-193.93841318,0.00011784,2]
[339308630,1727445032230,-2357.80715962,0.00011784,2]
[339308631,1727445032239,-264.94095334,0.00011786,2]
[339308632,1727445032248,-264.94095334,0.00011788,2]
[339308633,1727445032258,-264.94095334,0.00011791,2]
[339308634,1727445032267,-264.94095334,0.00011793,2]
[339308635,1727445032277,-264.94095334,0.00011796,2]
[339308636,1727445032286,-264.94095334,0.00011798,2]
[339308637,1727445032296,-1000.0,0.000118,2]
[339308638,1727445032305,-400.0,0.000118,4]
[339308639,1727445032315,-264.94095334,0.00011801,2]
[339308640,1727445032324,-264.94095334,0.00011803,2]
[339308641,1727445032334,-193.93841318,0.00011803,2]
[339308642,1727445032344,-1000.0,0.0001187,2]
[339308643,1727445032353,-500.0,0.0001187,2]
[339308644,1727445032363,-500.0,0.00011873,2]
[339308645,1727445032376,-500.0,0.0001188,2]
[339308646,1727445032385,-500.0,0.0001188,2]
[339308647,1727445032395,-500.0,0.0001188,2]
[339308648,1727445032403,-500.0,0.0001188,2]
[339308649,1727445032413,-500.0,0.0001188,2]
[339308650,1727445032423,-500.0,0.0001188,2]
[339308651,1727445032433,-500.0,0.0001188,2]
[339308652,1727445032442,-500.0,0.0001188,2]
[339308653,1727445032451,-550.01091709,0.0001188,2]
[339308654,1727445032461,-500.0,0.0001188,2]
[339308655,1727445032470,-500.0,0.0001188,2]
[339308656,1727445032480,-500.0,0.0001188,2]
[339308657,1727445032490,-625.68,0.0001188,2]
[339308658,1727445032499,-500.0,0.0001188,2]
[339308659,1727445032509,-500.0,0.0001188,2]
[339308660,1727445032518,-500.0,0.0001188,2]
[339308661,1727445032527,-500.0,0.0001188,2]
[339308662,1727445032537,-827.13,0.0001188,2]
[339308663,1727445032546,-500.0,0.0001188,2]
[339308664,1727445032555,-500.0,0.0001188,2]
[339308665,1727445032564,-500.0,0.0001188,2]
[339308666,1727445032573,-622.97,0.0001188,2]
[339308667,1727445032582,-500.0,0.0001188,2]
[339308668,1727445032592,-500.0,0.0001188,2]
[339308669,1727445032601,-500.0,0.0001188,2]
[339308670,1727445032611,-500.0,0.0001188,2]
[339308671,1727445032624,-500.0,0.0001188,2]
[339308672,1727445032634,-500.0,0.0001188,2]
[339308673,1727445032644,-500.0,0.0001188,2]
[339308674,1727445032654,-500.0,0.0001188,2]
[339308675,1727445032664,-500.0,0.0001188,2]
[339308676,1727445032673,-500.0,0.0001188,2]
[339308677,1727445032683,-500.0,0.0001188,2]
[339308678,1727445032693,-500.0,0.0001188,2]
[339308679,1727445032702,-500.0,0.0001188,2]
[339308680,1727445032711,-500.0,0.0001188,2]
[339308681,1727445032721,-500.0,0.0001188,2]
[339308682,1727445032730,-500.0,0.0001188,2]
[339308683,1727445032740,-629.41,0.0001188,2]
[339308684,1727445032749,-500.0,0.0001188,2]
[339308685,1727445032758,-500.0,0.0001188,2]
[339308686,1727445032768,-685.79,0.0001188,2]
[339308687,1727445032777,-500.0,0.0001188,2]
[339308688,1727445032786,-884.07,0.0001188,2]
[339308689,1727445032795,-500.0,0.0001188,2]
[339308690,1727445032804,-500.0,0.0001188,2]
[339308691,1727445032813,-500.0,0.0001188,2]
[339308692,1727445033075,-500.0,0.0001188,2]
[339308693,1727445033087,-500.0,0.0001188,2]
[339308694,1727445033097,-500.0,0.0001188,2]
[339308695,1727445033106,-500.0,0.0001188,2]
[339308696,1727445033117,-500.0,0.0001188,2]
[339308697,1727445033129,-534.25,0.0001188,2]
[339308698,1727445033139,-500.0,0.0001188,2]
[339308699,1727445033148,-500.0,0.0001188,2]
[339308700,1727445033158,-1735.6,0.0001188,2]
[339308701,1727445033169,-500.0,0.0001188,2]
[339308702,1727445033180,-467.47126779,0.0001188,2]
[339308703,1727445033190,-500.0,0.0001188,2]
[339308704,1727445033201,-500.0,0.0001188,2]
[339308705,1727445033211,-500.0,0.0001188,2]
[339308706,1727445033220,-1248.79,0.0001188,2]
[339308707,1727445033231,-500.0,0.0001188,2]
[339308708,1727445033242,-500.0,0.0001188,2]
[339308709,1727445033252,-500.0,0.0001188,2]
[339308710,1727445033262,-500.0,0.0001188,2]
[339308711,1727445033272,-500.0,0.0001188,2]
[339308712,1727445033281,-500.0,0.0001188,2]
[339308713,1727445033291,-500.0,0.0001188,2]
[339308714,1727445033300,-500.0,0.0001188,2]
[339308715,1727445033310,-500.0,0.0001188,2]
[339308716,1727445033319,-500.0,0.0001188,2]
[339308717,1727445033329,-500.0,0.0001188,2]
[339308718,1727445033338,-500.0,0.0001188,2]
[339308719,1727445033349,-500.0,0.0001188,2]
[339308720,1727445033358,-500.0,0.0001188,2]
[339308721,1727445033372,-500.0,0.0001188,2]
[339308722,1727445033381,-500.0,0.0001188,2]
[339308723,1727445033391,-500.0,0.0001188,2]
[339308724,1727445033400,-555.94,0.0001188,2]
[339308725,1727445033410,-500.0,0.0001188,2]
[339308726,1727445033419,-500.0,0.0001188,2]
[339308727,1727445033429,-500.0,0.0001188,2]
[339308728,1727445033438,-500.0,0.0001188,2]
[339308729,1727445033448,-2508.37,0.0001188,2]
[339308730,1727445033457,-500.0,0.0001188,2]
[339308731,1727445033467,-500.0,0.0001188,2]
[339308732,1727445033476,-500.0,0.0001188,2]
[339308733,1727445033485,-508.12,0.0001188,2]
[339308734,1727445033495,-500.96409589,0.0001188,2]
[339308735,1727445033504,-500.0,0.0001188,2]
[339308736,1727445033514,-500.0,0.0001188,2]
[339308737,1727445033524,-1075.12,0.0001188,2]
[339308738,1727445033533,-500.0,0.0001188,2]
[339308739,1727445033542,-500.0,0.0001188,2]
[339308740,1727445033552,-500.0,0.0001188,2]
[339308741,1727445033562,-500.0,0.0001188,2]
[339308742,1727445033571,-500.0,0.0001188,2]
[339308743,1727445033581,-509.04391127,0.0001188,2]
[339308744,1727445033590,-500.0,0.0001188,2]
[339308745,1727445033599,-500.0,0.0001188,2]
[339308746,1727445033609,-500.0,0.0001188,2]
[339308747,1727445033621,-500.0,0.0001188,2]
[339308748,1727445033631,-500.0,0.0001188,2]
[339308749,1727445033640,-500.0,0.0001188,2]
[339308750,1727445033651,-500.0,0.0001188,2]
[339308751,1727445033660,-500.0,0.0001188,2]
[339308752,1727445033670,-500.0,0.0001188,2]
[339308753,1727445033679,-261.73635284,0.0001188,2]
[339308754,1727445033688,-500.0,0.0001188,2]
[339308755,1727445033698,-500.0,0.0001188,2]
[339308756,1727445033707,-500.0,0.0001188,2]
[339308757,1727445033717,-500.0,0.0001188,2]
[339308758,1727445033726,-500.0,0.0001188,2]
[339308759,1727445033737,-500.0,0.0001188,2]
[339308760,1727445033747,-500.0,0.0001188,2]
[339308761,1727445033756,-500.0,0.0001188,2]
[339308762,1727445033766,-500.0,0.0001188,2]
[339308763,1727445033776,-500.0,0.0001188,2]
[339308764,1727445033785,-500.0,0.0001188,2]
[339308765,1727445033794,-500.0,0.0001188,2]
[339308766,1727445033804,-500.0,0.0001188,2]
[339308767,1727445033813,-224.18511883,0.0001188,2]
[339308768,1727445033823,-500.0,0.0001188,2]
[339308769,1727445033833,-500.0,0.0001188,2]
[339308770,1727445033842,-500.0,0.0001188,2]
[339308771,1727445033852,-500.0,0.0001188,2]
[339308772,1727445033861,-500.0,0.0001188,2]
[339308773,1727445033872,-500.0,0.0001188,2]
[339308774,1727445033881,-500.0,0.0001188,2]
[339308775,1727445033890,-1579.44,0.0001188,2]
[339308776,1727445033900,-500.0,0.0001188,2]
[339308777,1727445033909,-500.0,0.0001188,2]
[339308778,1727445033919,-500.0,0.0001188,2]
[339308779,1727445033928,-500.0,0.0001188,2]
[339308780,1727445033937,-500.0,0.0001188,2]
[339308781,1727445033947,-500.0,0.0001188,2]
[339308782,1727445033957,-500.0,0.0001188,2]
[339308783,1727445033966,-500.0,0.0001188,2]
[339308784,1727445033976,-1227.11,0.0001188,2]
[339308785,1727445033985,-1196.82,0.0001188,2]
[339308786,1727445033996,-500.0,0.0001188,2]
[339308787,1727445034005,-521.2,0.0001188,2]
[339308788,1727445034015,-500.0,0.0001188,2]
[339308789,1727445034024,-500.0,0.0001188,2]
[339308790,1727445034033,-500.0,0.0001188,2]
[339308791,1727445034043,-1939.99,0.0001188,2]
[339308792,1727445034052,-500.0,0.0001188,2]
[339308793,1727445034061,-500.0,0.0001188,2]
[339308794,1727445034070,-500.0,0.0001188,2]
[339308795,1727445034080,-500.0,0.0001188,2]
[339308796,1727445034091,-500.0,0.0001188,2]
[339308797,1727445034100,-500.0,0.0001188,2]
[339308798,1727445034110,-500.0,0.0001188,2]
[339308799,1727445034122,-4006.76,0.0001188,2]
[339308800,1727445034131,-500.0,0.0001188,2]
[339308801,1727445034140,-500.0,0.0001188,2]
[339308802,1727445034150,-500.0,0.0001188,2]
[339308803,1727445034159,-500.0,0.0001188,2]
[339308804,1727445034170,-500.0,0.0001188,2]
[339308805,1727445034180,-500.0,0.0001188,2]
[339308806,1727445034190,-500.0,0.0001188,2]
[339308807,1727445034199,-1013.83,0.0001188,2]
[339308808,1727445034209,-500.0,0.0001188,2]
[339308809,1727445034219,-500.0,0.0001188,2]
[339308810,1727445034228,-500.0,0.0001188,2]
[339308811,1727445034238,-632.64,0.0001188,2]
[339308812,1727445034247,-500.0,0.0001188,2]
[339308813,1727445034257,-500.0,0.0001188,2]
[339308814,1727445034266,-500.0,0.0001188,2]
[339308815,1727445034275,-534.41,0.0001188,2]
[339308816,1727445034285,-500.0,0.0001188,2]
[339308817,1727445034295,-500.0,0.0001188,2]
[339308818,1727445034304,-500.0,0.0001188,2]
[339308819,1727445034313,-500.0,0.0001188,2]
[339308820,1727445034323,-500.0,0.0001188,2]
[339308821,1727445034333,-223.7,0.0001188,2]
[339308822,1727445034343,-500.0,0.0001188,2]
[339308823,1727445034352,-500.0,0.0001188,2]
[339308824,1727445034364,-500.0,0.0001188,2]
[339308825,1727445034374,-586.71,0.0001188,2]
[339308826,1727445034383,-500.0,0.0001188,2]
[339308827,1727445034393,-500.0,0.0001188,2]
[339308828,1727445034403,-500.0,0.0001188,2]
[339308829,1727445034412,-500.0,0.0001188,2]
[339308830,1727445034421,-500.0,0.0001188,2]
[339308831,1727445034431,-833.59,0.0001188,2]
[339308832,1727445034440,-492.06690216,0.0001188,2]
[339308833,1727445034450,-833.59,0.0001188,2]
[339308834,1727445034460,-942.72,0.0001188,2]
[339308835,1727445034469,-500.0,0.0001188,2]
[339308836,1727445034478,-1848.57,0.0001188,2]
[339308837,1727445034488,-500.0,0.0001188,2]
[339308838,1727445034498,-500.0,0.0001188,2]
[339308839,1727445034509,-500.0,0.0001188,2]
[339308840,1727445034518,-500.0,0.0001188,2]
[339308841,1727445034528,-170.21,0.0001188,2]
[339308842,1727445034538,-500.0,0.0001188,2]
[339308843,1727445034548,-500.0,0.0001188,2]
[339308844,1727445034557,-500.0,0.0001188,2]
[339308845,1727445034567,-500.0,0.0001188,2]
[339308846,1727445034576,-500.0,0.0001188,2]
[339308847,1727445034586,-2414.55,0.0001188,2]
[339308848,1727445034596,-500.0,0.0001188,2]
[339308849,1727445034607,-500.0,0.0001188,2]
[339308850,1727445034617,-253.48,0.0001188,2]
[339308851,1727445034627,-500.0,0.0001188,2]
[339308852,1727445034636,-500.0,0.0001188,2]
[339308853,1727445034645,-500.0,0.0001188,2]
[339308854,1727445034655,-500.0,0.00011881,2]
[339308855,1727445034665,-500.0,0.00011881,2]
[339308856,1727445034676,-946.33,0.00011881,2]
[339308857,1727445034686,-747.38,0.00011881,2]
[339308858,1727445034695,-500.0,0.00011881,2]
[339308859,1727445034705,-1209.65,0.00011881,2]
[339308860,1727445034715,-500.0,0.00011881,2]
[339308861,1727445034725,-500.0,0.00011881,2]
[339308862,1727445034734,-500.0,0.00011881,2]
[339308863,1727445034744,-668.38,0.00011881,2]
[339308864,1727445034754,-500.0,0.00011881,2]
[339308865,1727445034763,-500.0,0.00011881,2]
[339308866,1727445034773,-500.0,0.00011881,2]
[339308867,1727445034782,-537.16,0.00011881,2]
[339308868,1727445034791,-500.0,0.00011881,2]
[339308869,1727445034801,-500.0,0.00011881,2]
[339308870,1727445034810,-500.0,0.00011881,2]
[339308871,1727445034819,-500.0,0.00011881,2]
[339308872,1727445034829,-500.0,0.00011881,2]
[339308873,1727445034839,-500.0,0.00011881,2]
[339308874,1727445034849,-500.0,0.00011881,2]
[339308875,1727445034859,-500.0,0.00011881,2]
[339308876,1727445034872,-500.0,0.00011881,2]
[339308877,1727445034882,-500.0,0.00011881,2]
[339308878,1727445034891,-500.0,0.00011881,2]
[339308879,1727445034902,-500.0,0.00011881,2]
[339308880,1727445034911,-500.0,0.00011881,2]
[339308881,1727445034921,-500.0,0.00011881,2]
[339308882,1727445034931,-500.0,0.00011881,2]
[339308883,1727445034942,-500.0,0.00011881,2]
[339308884,1727445034952,-634.87,0.00011881,2]
[339308885,1727445034962,-500.0,0.00011881,2]
[339308886,1727445034971,-634.87,0.00011881,2]
[339308887,1727445034980,-500.0,0.00011881,2]
[339308888,1727445034990,-634.87,0.00011881,2]
[339308889,1727445034999,-500.0,0.00011881,2]
[339308890,1727445035008,-500.0,0.00011881,2]
[339308891,1727445035018,-500.0,0.00011881,2]
[339308892,1727445035027,-500.0,0.00011881,2]
[339308893,1727445035036,-500.0,0.00011881,2]
[339308894,1727445035046,-500.0,0.00011881,2]
[339308895,1727445035055,-500.0,0.00011881,2]
[339308896,1727445035064,-500.0,0.00011881,2]
[339308897,1727445035074,-500.0,0.00011881,2]
[339308898,1727445035086,-500.0,0.00011881,2]
[339308899,1727445035095,-500.0,0.00011881,2]
[339308900,1727445035104,-500.0,0.00011881,2]
[339308901,1727445035115,-500.0,0.00011881,2]
[339308902,1727445035125,-500.0,0.00011881,2]
[339308903,1727445035136,-500.0,0.00011881,2]
[339308904,1727445035146,-500.0,0.00011881,2]
[339308905,1727445035155,-500.0,0.00011881,2]
[339308906,1727445035165,-1823.59,0.00011881,2]
[339308907,1727445035175,-1823.59,0.00011881,2]
[339308908,1727445035185,-1823.59,0.00011881,2]
[339308909,1727445035194,-500.0,0.00011881,2]
[339308910,1727445035204,-500.0,0.00011881,2]
[339308911,1727445035213,-500.0,0.00011881,2]
[339308912,1727445035223,-500.0,0.00011881,2]
[339308913,1727445035233,-500.0,0.00011881,2]
[339308914,1727445035242,-500.0,0.00011881,2]
[339308915,1727445035252,-500.0,0.00011881,2]
[339308916,1727445035261,-500.0,0.00011881,2]
[339308917,1727445035271,-500.0,0.00011881,2]
[339308918,1727445035280,-500.0,0.00011881,2]
[339308919,1727445035289,-500.0,0.00011881,2]
[339308920,1727445035299,-512.78,0.00011881,2]
[339308921,1727445035309,-512.78,0.00011881,2]
[339308922,1727445035319,-512.78,0.00011881,2]
[339308923,1727445035329,-500.0,0.00011881,2]
[339308924,1727445035339,-500.0,0.00011881,2]
[339308925,1727445035348,-500.0,0.00011881,2]
[339308926,1727445035358,-500.0,0.00011881,2]
[339308927,1727445035374,-500.0,0.00011881,2]
[339308928,1727445035383,-500.0,0.00011881,2]
[339308929,1727445035393,-500.0,0.00011881,2]
[339308930,1727445035402,-500.0,0.00011881,2]
[339308931,1727445035411,-500.0,0.00011881,2]
[339308932,1727445035421,-500.0,0.00011881,2]
[339308933,1727445035430,-500.0,0.00011881,2]
[339308934,1727445035439,-573.24514982,0.00011881,2]
[339308935,1727445035448,-171.09,0.00011881,2]
[339308936,1727445035458,-171.09,0.00011881,2]
[339308937,1727445035468,-171.09,0.00011881,2]
[339308938,1727445035477,-500.0,0.00011881,2]
[339308939,1727445035487,-398.23,0.00011881,2]
[339308940,1727445035496,-500.0,0.00011881,2]
[339308941,1727445035506,-218.46213954,0.00011881,2]
[339308942,1727445035516,-500.0,0.00011881,2]
[339308943,1727445035525,-500.0,0.00011881,2]
[339308944,1727445035535,-500.0,0.00011881,2]
[339308945,1727445035544,-1181.96,0.00011881,2]
[339308946,1727445035554,-1181.96,0.00011881,2]
[339308947,1727445035563,-1181.96,0.00011881,2]
[339308948,1727445035573,-500.0,0.00011881,2]
[339308949,1727445035586,-500.0,0.00011881,2]
[339308950,1727445035595,-500.0,0.00011881,2]
[339308951,1727445035604,-500.0,0.00011881,2]
[339308952,1727445035616,-500.0,0.00011881,2]
[339308953,1727445035626,-500.0,0.00011881,2]
[339308954,1727445035635,-500.0,0.00011881,2]
[339308955,1727445035644,-500.0,0.00011881,2]
[339308956,1727445035654,-500.0,0.00011881,2]
[339308957,1727445035663,-500.0,0.00011881,2]
[339308958,1727445035673,-500.0,0.00011881,2]
[339308959,1727445035683,-500.0,0.00011881,2]
[339308960,1727445035693,-500.0,0.00011881,2]
[339308961,1727445035702,-500.0,0.00011881,2]
[339308962,1727445035712,-500.0,0.00011881,2]
[339308963,1727445035721,-500.0,0.00011881,2]
[339308964,1727445035731,-500.0,0.00011881,2]
[339308965,1727445035741,-500.0,0.00011881,2]
[339308966,1727445035750,-498.80626043,0.00011881,2]
[339308967,1727445035774,-1.19373957,0.00011881,2]
[339308968,1727445035784,-500.0,0.00011881,2]
[339308969,1727445035793,-353.61510241,0.00011881,2]
[339308970,1727445035805,-146.38489759,0.00011881,2]
[339308971,1727445035814,-500.0,0.00011881,2]
[339308972,1727445035824,-257.99238406,0.00011881,2]
[339308973,1727445035835,-242.00761594,0.00011881,2]
[339308974,1727445035845,-500.0,0.00011881,2]
[339308975,1727445035854,-184.42874283,0.00011881,2]
[339308976,1727445035872,-315.57125717,0.00011881,2]
[339308977,1727445035881,-500.0,0.00011881,2]
[339308978,1727445035892,-500.0,0.00011881,2]
[339308979,1727445035902,-500.0,0.00011881,2]
[339308980,1727445035911,-500.0,0.00011881,2]
[339308981,1727445035920,-616.72,0.00011881,2]
[339308982,1727445035930,-616.72,0.00011881,2]
[339308983,1727445035939,-616.72,0.00011881,2]
[339308984,1727445035949,-500.0,0.00011881,2]
[339308985,1727445035959,-327.69274283,0.00011881,2]
[339308986,1727445035971,-172.30725717,0.00011881,2]
[339308987,1727445035981,-500.0,0.00011881,2]
[339308988,1727445035990,-500.0,0.00011881,2]
[339308989,1727445035999,-500.0,0.00011881,2]
[339308990,1727445036008,-440.06873646,0.00011881,2]
[339308991,1727445036018,-501.03333639,0.00011881,2]
[339308992,1727445036027,-500.0,0.00011881,2]
[339308993,1727445036036,-500.0,0.00011881,2]
[339308994,1727445036046,-336.35210068,0.00011881,2]
[339308995,1727445036058,-163.64789932,0.00011881,2]
[339308996,1727445036067,-500.0,0.00011881,2]
[339308997,1727445036077,-193.65680739,0.00011881,2]
[339308998,1727445036090,-306.34319261,0.00011881,2]
[339308999,1727445036099,-500.0,0.00011881,2]
[339309000,1727445036109,-500.0,0.00011881,2]
[339309001,1727445036122,-500.0,0.00011881,2]
[339309002,1727445036131,-500.0,0.00011881,2]
[339309003,1727445036141,-107.73349023,0.00011881,2]
[339309004,1727445036152,-392.26650977,0.00011881,2]
[339309005,1727445036162,-500.0,0.00011881,2]
[339309006,1727445036172,-500.0,0.00011881,2]
[339309007,1727445036183,-500.0,0.00011881,2]
[339309008,1727445036192,-500.0,0.00011881,2]
[339309009,1727445036202,-564.08,0.00011881,2]